Cogmind - Beta 15 @@@ ROGUE MODE // 2025.05.12 @ 01:10:53 Player: Skysub Result: Destroyed by P-80 Master with Gamma Rifle Performance ------------- Evolutions (8) 4000 Regions Visited (24) 4800 Robots Destroyed (100) 500 Value Destroyed (3403) 3403 Prototype IDs (42) 840 Alien Tech Used (0) 0 Bonus (7461) 7461 TOTAL SCORE: 21004 Bonus ------- High Alert Combat Kills 74 Follower Combat Kills 2650 Entered Garrisons 200 Used RIF Installer 500 Entered DSFs 500 Network Hubs Disabled 200 Aligned with FarCom 300 Built Enhanced Grunts 300 A7 Reached Mainframe 300 Met R17 at Cetus 500 Met R17 at Research 2000 Friendly Fire -63 Cogmind --------- Core Integrity 0/1450 Matter 69/300 Energy 21/100 System Corruption 14% Temperature Cool (0) Movement Core (100) Ox1 Location -2/Research Parts ------- > --- POWER (3) -------- (None) > --- PROPULSION (6) --- (None) > --- UTILITY (10) ----- Advanced Target Analyzer Advanced Target Analyzer > --- WEAPON (4) ------- Advanced Remote Datajack > --- INVENTORY (5) ---- (None) Peak State ------------ > --- POWER ------------ Improved Ion Engine Mini Fusion Reactor Compact Particle Reactor > --- PROPULSION ------- Xenon Bombardment Thruster Field Propulsion Array Diametric Drive Impulse Thruster Array > --- UTILITY ---------- Advanced Signal Interpreter Advanced Terrain Scan Processor Improved Targeting Computer Advanced Target Analyzer Improved Kinecellerator Advanced Weapon Cycler Improved Phase Shifter Hacking Suite Improved Hacking Suite Improved System Shield > --- WEAPON ----------- KE Penetrator KE Penetrator Molecular Deconstructor > --- INVENTORY -------- Advanced Heat Sink Advanced Weight Redist. System KE Penetrator Advanced Remote Datajack Improved Plasma Cutter [Rating: 145] Favorites ----------- Power Backup Power I Engine Backup Power I Power Core Nuclear Core Reactor Compact Particle Reactor Propulsion Compact Wheel Treads Biometal Medium Treads Leg Aluminum Leg Wheel Compact Wheel Hover Unit Combat Gravmag System Flight Unit Cesium-ion Thruster Utility Hacking Suite Device Advanced Weight Redist. System Storage Large Storage Unit Processor Advanced Signal Interpreter Hackware Hacking Suite Protection Centrium Medium Armor Plating Weapon KE Penetrator Energy Gun Field Laser Ballistic Gun KE Penetrator Ballistic Cannon Flak Cannon Launcher Heavy Missile Launcher Special Weapon Remote Datajack Impact Weapon Heavy Mace Slashing Weapon Plasma Sword Special Melee Weapon Advanced Datajack Build | -11 -10 -10 -10 -9 -8 -7 -7 -7 -7 -7 -6 -6 -5 -5 -5 -5 -5 -4 -4 -4 -4 -3 -3 -2 ------- Run | Yrd Mat Min Exi Min Mat Fac Was Fac Gar Fac Fac DSF Fac Ext Cet Arc Hub Fac Upp Upp War Pro Res Res Slots Evolved 16 | . . . . . 4 2 . . . . 2 . 2 . . . . 2 . . . . 2 2 Power 2 | . . . . . . . . . . . . . 1 . . . . . . . . . 1 . Propulsion 4 | . . . . . 1 . . . . . 2 . 1 . . . . . . . . . . . Utility 8 | . . . . . 3 2 . . . . . . . . . . . 2 . . . . . 1 Weapon 2 | . . . . . . . . . . . . . . . . . . . . . . . 1 1 Parts Attached 182 | 7 1 6 . 3 19 12 1 8 1 16 6 4 4 13 4 11 1 11 4 7 . 3 22 18 Power 28 | 1 . 1 . . 2 4 . 1 . 2 . . 1 3 1 3 . 1 1 1 . . 5 1 Engine 16 | 1 . 1 . . . 3 . 1 . 1 . . . 3 1 3 . 1 . . . . . 1 Core 6 | . . . . . 2 1 . . . 1 . . . . . . . . 1 1 . . . . Reactor 6 | . . . . . . . . . . . . . 1 . . . . . . . . . 5 . Propulsion 55 | 2 1 1 . . 7 1 . 5 . 7 2 2 . 3 . 4 . 5 . 2 . . 8 5 Treads 6 | . . . . . . . . 1 . 1 . . . . . . . . . . . . 4 . Leg 4 | . . . . . 1 . . 2 . 1 . . . . . . . . . . . . . . Wheel 10 | 2 1 1 . . 4 . . 1 . . . . . . . . . 1 . . . . . . Hover 10 | . . . . . . . . 1 . . . . . . . 4 . 2 . . . . 3 . Flight 25 | . . . . . 2 1 . . . 5 2 2 . 3 . . . 2 . 2 . . 1 5 Utility 64 | 2 . 1 . 2 7 4 1 . . 5 3 2 3 5 2 3 . 4 3 1 . 3 5 8 Device 30 | 1 . . . 2 4 3 1 . . 2 . 1 . 3 . . . 2 3 1 . 1 2 4 Storage 3 | 1 . 1 . . . . . . . . . . . . . . . . . . . . 1 . Processor 12 | . . . . . 1 1 . . . 2 1 . 1 1 . . . 1 . . . 1 . 3 Hackware 9 | . . . . . 1 . . . . 1 . 1 1 . . 3 . . . . . . 1 1 Protection 10 | . . . . . 1 . . . . . 2 . 1 1 2 . . 1 . . . 1 1 . Artifact . | . . . . . . . . . . . . . . . . . . . . . . . . . Weapon 35 | 2 . 3 . 1 3 3 . 2 1 2 1 . . 2 1 1 1 1 . 3 . . 4 4 Energy Gun 7 | . . 3 . . 2 1 . . . . . . . . . . . . . . . . 1 . Energy Cannon . | . . . . . . . . . . . . . . . . . . . . . . . . . Ballistic Gun 13 | 2 . . . . . 1 . 2 . . . . . . 1 . . 1 . 2 . . 3 1 Ballistic Cannon 1 | . . . . . . . . . . . . . . . . . . . . . . . . 1 Launcher 3 | . . . . 1 . . . . . 1 . . . . . . . . . . . . . 1 Special Weapon 5 | . . . . . . . . . . . 1 . . 2 . . . . . 1 . . . 1 Impact Weapon 2 | . . . . . 1 . . . . 1 . . . . . . . . . . . . . . Slashing Weapon 2 | . . . . . . 1 . . . . . . . . . . 1 . . . . . . . Piercing Weapon . | . . . . . . . . . . . . . . . . . . . . . . . . . Special Melee Weapon 2 | . . . . . . . . . 1 . . . . . . 1 . . . . . . . . Unidentified Prototypes 15 | . . . . 1 2 2 . . . . 1 . 1 . 2 . 1 . . 1 . . 3 1 Corrupted Parts 2 | . . . . . . . . 2 . . . . . . . . . . . . . . . . System Corruption 11 | . . . . . . . . 11 . . . . . . . . . . . . . . . . Parts Lost 86 | . 1 3 . . 12 3 4 . . 1 . 3 . 11 1 5 6 . . 2 . 7 4 23 Power 10 | . . 1 . . 1 1 . . . . . . . 2 . 2 . . . . . . 1 2 Propulsion 31 | . 1 . . . 4 1 2 . . 1 . . . 5 1 2 5 . . . . 3 1 5 Utility 26 | . . . . . 3 1 1 . . . . 2 . 4 . . . . . 2 . 3 1 9 Weapon 19 | . . 2 . . 4 . 1 . . . . 1 . . . 1 1 . . . . 1 1 7 Highest Loss Streak 22 | . 1 2 . . 9 2 4 . . 1 . 3 . 4 1 5 4 . . 2 . 5 4 22 To Critical Strikes 2 | . . . . . . 1 . . . . . . . . . 1 . . . . . . . . Average Backups 5 | 1 4 10 11 9 6 9 4 2 2 4 4 5 4 4 4 5 5 3 5 4 4 3 6 5 Power . | . 1 . . . . . . . . . . . . . . . . . . . . . . . Propulsion . | 1 2 2 2 1 . 2 1 . . . . . . . . . . . 1 . . . . . Utility 2 | . . 6 8 7 4 3 1 1 1 1 2 2 2 1 3 3 3 1 2 . . . 2 1 Weapon 1 | . . . . . 1 1 1 . . 1 1 1 . . . 1 . . . 1 2 1 1 . Tool/Special . | . . . . . . . . . . . . . . . . . . . . . . . . . Unused Backups 24 | . . . 5 1 . 3 3 . . 2 . 2 . 1 2 . 1 . . 1 . . . 3 Power . | . . . . . . . . . . . . . . . . . . . . . . . . . Propulsion 3 | . . . 2 . . . . . . . . . . . . . . . . . . . . 1 Utility 13 | . . . 3 . . 1 2 . . 1 . 2 . 1 1 . 1 . . . . . . 1 Weapon 6 | . . . . . . 2 . . . 1 . . . . 1 . . . . 1 . . . 1 Tool/Special 2 | . . . . 1 . . 1 . . . . . . . . . . . . . . . . . Average Slot Usage (%) 80 | . 98 91 100 99 88 86 35 44 61 65 92 94 94 92 82 71 74 73 88 85 89 67 79 79 Engine 4 | . 14 8 14 14 . 3 1 1 7 4 . . . 5 11 7 8 5 7 5 5 5 . . Core 2 | . . . . . 8 3 . . . 2 6 6 5 2 . . . . 2 5 5 1 . . Reactor 1 | . . . . . . . . . . . . . 3 2 . . . . . . . . 8 8 Treads 1 | . . . . . . . . 1 7 5 . . . . . . . . . . . . 9 1 Leg 1 | . . . . . 2 . . 7 7 4 . . . . . . . . . . . . . . Wheel 8 | . 26 28 28 28 18 18 2 1 7 4 . . . . . . . 1 . . . . . . Hover 1 | . . . . . . . . 3 . . . . . . . 5 14 9 10 . . . 5 . Flight 8 | . . . . . 3 . 8 6 . 6 27 33 35 28 17 7 3 4 10 18 21 8 3 14 Device 11 | . 14 14 14 13 16 22 10 7 7 8 6 5 5 5 5 5 5 10 15 19 21 8 4 9 Storage 3 | . 14 14 14 14 9 7 1 . . . . . . . . . . . . . . . 2 . Processor 8 | . . . . . 4 6 7 7 7 10 24 25 15 12 11 11 11 10 10 10 10 14 11 17 Hackware 8 | . . . . . 8 7 1 . . . 6 6 16 17 17 17 17 15 15 11 10 10 13 13 Protection 2 | . . . . . . . . . . . 5 4 1 3 5 5 3 4 4 5 5 6 4 . Energy Gun 3 | . . 9 28 24 4 1 . . . . . . . . . . . . . . . . . . Ballistic Gun 5 | . 28 15 . . . 4 1 5 14 8 4 . 1 2 4 5 3 4 5 3 2 8 10 9 Impact Weapon 1 | . . . . . 7 1 . . . 1 6 6 5 4 . . . . . . . . . . Slashing Weapon 1 | . . . . . . 5 1 . . . . . . . . . . 5 5 4 5 1 . . Peak Build Rating 145 | 9 9 14 19 25 38 49 64 71 71 73 54 54 61 82 86 92 92 104 109 110 105 106 135 145 Average Rating 64 | 5 8 10 16 19 33 42 57 67 71 59 47 49 56 65 84 73 70 80 105 101 104 67 112 131 On Entrance 58 | . 9 9 14 19 25 34 42 64 71 71 39 54 46 61 82 85 92 38 103 109 103 105 57 135 Naked Turns . | . . . . . . . . . . . . . . . . . . . . . . . . . Heaviest Build 100 | 13 13 31 30 33 39 40 80 97 97 100 20 23 27 33 36 32 34 26 35 42 40 42 89 90 Greatest Support 149 | 26 32 32 32 32 48 43 33 20 16 20 26 26 27 48 48 45 45 39 39 50 41 43 149 105 Greatest Overweight (x) 26 | . . . . 1 3 1 26 8 6 6 . . . 1 . 1 1 1 . . . 2 2 5 Average Overweight (x) . | . . . . . . . 4 6 6 1 . . . . . . . . . . . . . . Largest Inventory Capacity 15 | 8 8 15 15 15 15 15 15 5 5 5 5 5 5 5 5 5 5 5 5 5 5 5 15 15 Average Capacity 8 | 7 8 14 15 15 15 15 6 5 5 5 5 5 5 5 5 5 5 5 5 5 5 5 10 6 Most Carried 15 | 4 6 15 15 15 15 15 15 3 3 5 5 5 5 5 5 5 5 5 5 5 5 5 15 15 Average Carried 7 | 1 4 11 14 15 12 14 5 2 2 4 4 4 4 4 4 5 4 3 5 4 5 4 7 5 Final Capacity 15 | 8 8 15 15 15 15 15 5 5 5 5 5 5 5 5 5 5 5 5 5 5 5 5 15 5 Final Carried 15 | 4 6 15 15 15 15 15 3 2 3 5 5 5 5 5 5 5 5 5 5 5 5 5 15 . Class Distribution -------------------- 23% | Mutant 17% | Hacker-Sprinter 14% | Assassin 13% | Hacker-Mutant 7% | Scavenger-Mutant 5% | Skirmisher 5% | Hacker-Skirmisher 3% | Scout 3% | Commander-Mutant Dominant Class ---------------- Mutant | -10/Materials Mutant | -10/Mines Mutant | -10/Exiles Skirmisher | -9/Mines Mutant | -8/Materials Assassin | -7/Factory Mutant | -7/Waste Mutant | -7/Factory Scavenger-Mutant | -7/Garrison Mutant | -7/Factory Scout | -6/Factory Scout | -6/DSF Hacker-Sprinter | -5/Factory Hacker-Sprinter | -5/Extension Commander-Mutant | -5/Cetus Commander-Mutant | -5/Archives Scavenger-Mutant | -5/Hub_04(d) Hacker-Scout | -4/Factory Hacker-Mutant | -4/Upper Caves Hacker-Sprinter | -4/Upper Caves Hacker-Sprinter | -4/Warlord Hacker-Mutant | -3/Proximity Caves Hacker-Skirmisher | -3/Research Hacker-Sprinter | -2/Research Resources | -11 -10 -10 -10 -9 -8 -7 -7 -7 -7 -7 -6 -6 -5 -5 -5 -5 -5 -4 -4 -4 -4 -3 -3 -2 ----------- Run | Yrd Mat Min Exi Min Mat Fac Was Fac Gar Fac Fac DSF Fac Ext Cet Arc Hub Fac Upp Upp War Pro Res Res Matter Collected 4332 | 260 56 147 25 62 381 253 . 174 229 314 . 124 53 515 106 192 . 11 159 421 . 156 481 213 Remotely 54 | . . . . . . 54 . . . . . . . . . . . . . . . . . . Salvage Created 4048 | 133 93 107 . . 625 879 . 69 174 49 . 36 53 509 147 109 . 11 87 253 . 101 348 265 Parts 185 | 7 2 5 . . 42 43 . 2 4 5 . 5 . 8 5 8 . 3 4 17 . 4 8 13 Haulers Intercepted 4 | . . . . . 1 . . . . . . . . 2 . . . . . . . . 1 . Recyclers Shooed 4 | . . . . . . 1 . 1 . . . . . . . . . . . . . . 1 1 Parts Field Recycled . | . . . . . . . . . . . . . . . . . . . . . . . . . Retrieved Matter . | . . . . . . . . . . . . . . . . . . . . . . . . . Parts Self-Destructed 19 | . . . . . . . . . . . . . . . . . . . . 15 . 4 . . Prevented . | . . . . . . . . . . . . . . . . . . . . . . . . . Kills | -11 -10 -10 -10 -9 -8 -7 -7 -7 -7 -7 -6 -6 -5 -5 -5 -5 -5 -4 -4 -4 -4 -3 -3 -2 ------- Run | Yrd Mat Min Exi Min Mat Fac Was Fac Gar Fac Fac DSF Fac Ext Cet Arc Hub Fac Upp Upp War Pro Res Res Combat Hostiles Destroyed 59 | . 2 3 . . 14 5 . . 4 2 . 2 . 5 2 . . . 1 10 . 2 5 2 Melee 8 | . . . . . . 4 . . . . . 1 . 1 1 . . . . . . 1 . . Guns 34 | . 2 3 . . 5 1 . . 4 2 . . . . 1 . . . 1 10 . 1 2 2 Cannons 3 | . . . . . 3 . . . . . . . . . . . . . . . . . . . AOE 7 | . . . . . 6 . . . . . . 1 . . . . . . . . . . . . Classes Destroyed 17 | 2 1 1 . . 7 3 . . 1 . . 1 . . . . . . 1 . . . . . Worker 7 | . . . . . 3 1 . . . . . . . . . . . . . . . . 2 1 Builder 5 | . . . . . . 3 . . . . . . . 1 . . . . . . . . . 1 Tunneler 4 | 2 . . . . 1 . . . . . . . . . . . . 1 . . . . . . Hauler 4 | . . . . . 1 . . . . . . . . 2 . . . . . . . . 1 . Recycler 10 | 1 . . . . 1 6 . 1 . . . . . . . . . . . . . . . 1 Mechanic 2 | . . . . . 1 1 . . . . . . . . . . . . . . . . . . Operator 6 | . . . . . 1 1 . . . . . . 1 . . 3 . . . . . . . . Watcher 4 | . . . . . 1 . . . . . . . 1 2 . . . . . . . . . . Swarmer 18 | . . . . . 4 . . . . 2 . . . . . . . . . 10 . 1 . 1 Cutter 2 | . . . . . . . . . . . . 2 . . . . . . . . . . . . Grunt 24 | . 2 2 . . 9 . . . 3 . . . . 4 . . . . . . . . 4 . Brawler 1 | . . . . . . . . . 1 . . . . . . . . . . . . . . . Sentry 2 | . . . . . . 1 . . . . . . . . . . . . . . . . 1 . Hunter 3 | . . . . . 1 1 . . . . . . . 1 . . . . . . . . . . Programmer 5 | . . . . . . 3 . . . . . . . . . . . . . . . 1 . 1 Cetus Guard 2 | . . . . . . . . . . . . . . . 2 . . . . . . . . . Assembled 1 | . . 1 . . . . . . . . . . . . . . . . . . . . . . Mutant 1 | . . . . . . . . . . . . . . . . . . . 1 . . . . . Best Kill Streak 12 | 3 1 2 . . 12 6 . 1 3 2 . 2 1 3 1 1 . 1 1 5 . 1 4 2 Combat Bots Only 7 | . 1 2 . . 7 2 . . 3 2 . 2 . 3 1 . . . 1 5 . 1 4 1 Max Kills in Single Turn 3 | 2 1 1 . . 3 1 . 1 2 1 . 1 1 1 1 1 . 1 1 1 . 1 1 1 Gunslinging 1 | . . . . . . . . . 1 . . . . . . . . . . . . . . . Exploded 2 | . . . . . 2 . . . . . . 1 . . . . . . . . . . . . Melee 1 | . . . . . . 1 . . . . . 1 . 1 1 . . . . . . 1 . . Uniques/NPCs Destroyed . | . . . . . . . . . . . . . . . . . . . . . . . . . Combat | -11 -10 -10 -10 -9 -8 -7 -7 -7 -7 -7 -6 -6 -5 -5 -5 -5 -5 -4 -4 -4 -4 -3 -3 -2 -------- Run | Yrd Mat Min Exi Min Mat Fac Was Fac Gar Fac Fac DSF Fac Ext Cet Arc Hub Fac Upp Upp War Pro Res Res Hostile Shots Fired 1044 | . 20 23 . . 133 82 12 10 21 20 1 15 4 73 24 25 49 8 8 117 9 36 64 290 Missed 439 | . 4 5 . . 51 24 2 2 10 3 1 7 2 29 14 12 21 4 4 75 5 14 19 131 Hits 605 | . 16 18 . . 82 58 10 8 11 17 . 8 2 44 10 13 28 4 4 42 4 22 45 159 Melee 17 | . . 4 . . . . 10 . 2 . . 1 . . . . . . . . . . . . Projectile 588 | . 16 14 . . 82 58 . 8 9 17 . 7 2 44 10 13 28 4 4 42 4 22 45 159 AOE 3 | . . . . . . . . 1 . . . 2 . . . . . . . . . . . . Critical Strikes 39 | . 3 . . . 4 1 6 . . . . 1 . . 1 1 6 1 1 . 1 2 4 7 Part Disruptions 2 | . . . . . . 1 . . . . . . . . . . . . . . . . . 1 Damage Taken 12727 | . 236 290 . . 1276 704 516 170 259 309 . 447 45 913 249 336 939 58 92 573 50 825 892 3548 Core 3423 | . 26 80 . . 422 136 226 . 32 43 . 75 . 137 71 . 446 . 23 55 16 108 55 1472 Absorbed by Shields 295 | . . . . . . . . . . . . . . 106 67 . 10 . . 82 18 12 . . Ignored by Resistances 12 | . . . . . . . . . . . . . . . . . . . . . . . . 12 Regen/Repaired (Parts) 30 | . . . . . 10 20 . . . . . . . . . . . . . . . . . . Core Remaining (%) 64 | 100 . . . 57 23 . . . . 37 . 91 . . . . 34 . . . . 82 95 . Volleys Fired 366 | 4 11 21 . . 41 12 . 12 16 15 3 2 . 52 9 37 3 1 7 43 . 20 23 34 Largest 3 | 2 2 2 . . 2 1 . 2 2 1 1 1 . 1 1 1 1 1 1 1 . 2 3 3 Hottest 128 | 40 40 83 . . 128 56 . 53 53 25 5 39 . 25 35 35 35 35 35 35 . 68 99 99 Shots Fired 464 | 8 22 28 . . 47 12 . 13 26 14 3 2 . 52 9 37 3 1 7 43 . 29 45 63 Gun 364 | 8 22 28 . . 29 12 . 13 26 14 . . . 1 9 37 3 1 7 43 . 29 33 49 Cannon 14 | . . . . . 11 . . . . . . . . . . . . . . . . . . 3 Launcher 10 | . . . . . 7 . . . . . . 2 . . . . . . . . . . . 1 Special 76 | . . . . . . . . . . . 3 . . 51 . . . . . . . . 12 10 Kinetic 340 | 8 22 21 . . 11 11 . 13 26 14 . . . 1 9 37 3 1 7 43 . 29 32 52 Thermal 28 | . . 7 . . 19 1 . . . . . . . . . . . . . . . . 1 . Explosive 9 | . . . . . 7 . . . . . . 2 . . . . . . . . . . . . Electromagnetic 11 | . . . . . 10 . . . . . . . . . . . . . . . . . . 1 Robot Hit Streak 13 | 6 9 3 . . 10 7 . 5 4 2 1 . . 13 8 4 2 . 5 11 . 3 9 4 Robot Miss Streak 5 | . 2 5 . . 5 1 . 4 4 3 3 1 . 2 1 3 1 . 1 5 . 3 3 4 Penetration Max 1 | . . . . . . . . . . . . . . . 1 1 . . . 1 . . 1 1 Secondary Targets 2 | . . . . . 1 . . . 1 . . . . . . . . . . . . . . . Max Gunslinging Chain 1 | . . . . . 1 . . . 1 . . . . . . . . . . . . . . . Shots Hit Robots 344 | 6 17 14 . . 40 37 . 7 22 6 1 2 3 63 10 19 2 1 6 25 . 10 28 25 Core Hits 163 | 4 5 7 . . 50 17 . 4 15 3 . 2 . 2 4 9 1 1 4 10 . 2 12 11 Critical Kills 4 | . . . . . . . . . . . . . . 1 1 1 . . . . . . 1 . Critical Parts Destroyed 13 | . . 1 . . 1 1 . . . . . . . 4 . 4 1 . . . . . . 1 Critical Strikes 19 | . . 1 . . 1 3 . . . . . . . 5 1 5 1 . . . . . 1 1 Destroy 11 | . . 1 . . . 1 . . . . . . . . 1 5 1 . . . . . 1 1 Smash 6 | . . . . . 1 . . . . . . . . 5 . . . . . . . . . . Sever 2 | . . . . . . 2 . . . . . . . . . . . . . . . . . . Melee Attacks 201 | . . . . . 29 63 . . 6 6 8 5 12 29 5 1 8 10 3 8 3 5 . . Impact 104 | . . . . . 29 6 . . . 6 8 5 12 29 5 . 4 . . . . . . . Slashing 90 | . . . . . . 57 . . . . . . . . . . 4 10 3 8 3 5 . . Piercing . | . . . . . . . . . . . . . . . . . . . . . . . . . Sneak Attacks 21 | . . . . . 3 9 . . . . . . 1 6 . 1 . 1 . . . . . . Combat Hostiles 2 | . . . . . . . . . . . . . . 2 . . . . . . . . . . Follow-up Attacks . | . . . . . . . . . . . . . . . . . . . . . . . . . Damage Inflicted 9572 | 82 218 194 . . 1684 1610 . 124 292 106 . 166 250 1114 322 520 83 89 163 618 . 320 592 1025 Guns 4575 | 82 218 194 . . 374 159 . 124 292 106 . . . . 218 520 58 . 163 618 . 211 513 725 Cannons 204 | . . . . . 204 . . . . . . . . . . . . . . . . . . . Explosions 1275 | . . . . . 916 . . . . . . 59 . . . . . . . . . . . 300 Melee 3408 | . . . . . 184 1451 . . . . . 107 250 1114 104 . . 89 . . . 109 . . Ramming 110 | . . . . . 6 . . . . . . . . . . . 25 . . . . . 79 . Kinetic 4338 | 82 218 143 . . 204 159 . 124 292 106 . . . . 218 520 58 . 163 618 . 211 497 725 Thermal 266 | . . 51 . . 199 . . . . . . . . . . . . . . . . . 16 . Explosive 1076 | . . . . . 916 . . . . . . 59 . . . . . . . . . . . 101 Electromagnetic 374 | . . . . . 175 . . . . . . . . . . . . . . . . . . 199 Impact 1759 | . . . . . 184 . . . . . . 107 250 1114 104 . . . . . . . . . Slashing 1649 | . . . . . . 1451 . . . . . . . . . . . 89 . . . 109 . . Piercing . | . . . . . . . . . . . . . . . . . . . . . . . . . Highest Corruption 43 | . . 4 4 4 . 5 31 42 42 43 . . . . . . 8 . . . . 10 . 13 Average Corruption 19 | . . 4 4 4 . 4 21 37 42 42 . . . . . . 5 . . . . 9 . 3 Corruption Purged . | . . . . . . . . . . . . . . . . . . . . . . . . . Corruption Blocked . | . . . . . . . . . . . . . . . . . . . . . . . . . Effects 177 | . . 2 3 13 . 19 16 28 17 54 . . . . . . 2 . . . . 17 . 6 Message Errors 41 | . . . . 2 . 3 6 8 1 14 . . . . . . . . . . . 5 . 2 Matter Fused 40 | . . . 2 5 . 5 2 5 2 11 . . . . . . 1 . . . . 6 . 1 Heat Flow Errors 24 | . . . 1 . . 4 5 2 4 7 . . . . . . . . . . . 1 . . Energy Discharges 19 | . . . . 3 . 3 1 4 3 2 . . . . . . 1 . . . . 2 . . Parts Rejected 1 | . . . . . . . . . . . . . . . . . . . . . . . . 1 Parts Fused 3 | . . . . . . . . 1 1 1 . . . . . . . . . . . . . . Data Loss (minor) 15 | . . 1 . . . 1 1 2 1 7 . . . . . . . . . . . . . 2 Data Loss (major) 9 | . . . . 3 . 1 1 2 1 1 . . . . . . . . . . . . . . Misfires 5 | . . 1 . . . . . . . 2 . . . . . . . . . . . 2 . . Alerts 7 | . . . . . . 2 . 1 . 3 . . . . . . . . . . . 1 . . Misdirections 4 | . . . . . . . . . 1 3 . . . . . . . . . . . . . . Weapon Failures 9 | . . . . . . . . 3 3 3 . . . . . . . . . . . . . . Overload Shots . | . . . . . . . . . . . . . . . . . . . . . . . . . Overflow Damage 934 | . . . . . 95 169 . . . . . 3 140 464 . . . . . . . 42 . 21 Projectiles 3 | . . . . . . . . . . . . 3 . . . . . . . . . . . . Explosions 40 | . . . . . 19 . . . . . . . . . . . . . . . . . . 21 Melee 891 | . . . . . 76 169 . . . . . . 140 464 . . . . . . . 42 . . Knockbacks 9 | . . . . . 2 . . . . . . 2 1 4 . . . . . . . . . . Impact 7 | . . . . . 1 . . . . . . 1 1 4 . . . . . . . . . . Kinetic 1 | . . . . . 1 . . . . . . . . . . . . . . . . . . . Secondary 1 | . . . . . . . . . . . . 1 . . . . . . . . . . . . Self-Inflicted Damage 195 | . . . . . 97 . . . . . . 86 . . . . 12 . . . . . . . Shots 4 | . . . . . 2 . . . . . . 2 . . . . . . . . . . . . Rammed 11 | . . . . . 1 . . . . . . . . . . . 3 . . . . . 7 . Targets Rammed 11 | . . . . . 1 . . . . . . . . . . . 3 . . . . . 7 . Kicked . | . . . . . . . . . . . . . . . . . . . . . . . . . Crushed . | . . . . . . . . . . . . . . . . . . . . . . . . . Highest Temperature 456 | . 27 151 161 . 300 252 191 256 180 265 . 11 . 14 5 4 . . 20 . . 87 14 456 Average Temperature 107 | . 10 55 81 . 87 94 83 116 75 102 . 6 . 8 2 2 . . 8 . . 49 8 146 Received Heat Transfer 1854 | . 186 111 . . 513 48 21 30 101 9 . . . 288 13 27 57 . 54 . . 21 321 54 Effects 2 | . . . . . . . . . . . . . . . . . . . . . . . . 2 Shutdowns 1 | . . . . . . . . . . . . . . . . . . . . . . . . 1 Energy Bleed 1 | . . . . . . . . . . . . . . . . . . . . . . . . 1 Siege Activations . | . . . . . . . . . . . . . . . . . . . . . . . . . Martial Activations . | . . . . . . . . . . . . . . . . . . . . . . . . . Shielding Activations . | . . . . . . . . . . . . . . . . . . . . . . . . . Robots Disrupted . | . . . . . . . . . . . . . . . . . . . . . . . . . Combat Hostiles . | . . . . . . . . . . . . . . . . . . . . . . . . . Robots Corrupted 9 | . . . . . 1 . . . . . . . 1 7 . . . . . . . . . . Combat Hostiles 4 | . . . . . . . . . . . . . . 4 . . . . . . . . . . Parts Fried 9 | . . . . . 2 . . . . . . . 2 5 . . . . . . . . . . Impact Corruptions 22 | . . . . . 3 . . . . . . 1 5 13 . . . . . . . . . . Robots Melted . | . . . . . . . . . . . . . . . . . . . . . . . . . Combat Hostiles . | . . . . . . . . . . . . . . . . . . . . . . . . . Parts Melted 3 | . . . . . 2 . . . 1 . . . . . . . . . . . . . . . Heat Transferred 592 | . . 111 . . 444 . . . . . . . . . . . . . . . . . 37 . Parts Sabotaged . | . . . . . . . . . . . . . . . . . . . . . . . . . Parts Stolen . | . . . . . . . . . . . . . . . . . . . . . . . . . Parts Stripped . | . . . . . . . . . . . . . . . . . . . . . . . . . Power Chain Reactions . | . . . . . . . . . . . . . . . . . . . . . . . . . Alert | -11 -10 -10 -10 -9 -8 -7 -7 -7 -7 -7 -6 -6 -5 -5 -5 -5 -5 -4 -4 -4 -4 -3 -3 -2 ------- Run | Yrd Mat Min Exi Min Mat Fac Was Fac Gar Fac Fac DSF Fac Ext Cet Arc Hub Fac Upp Upp War Pro Res Res Maximum Alert Level 2 | . . . . . 1 . . 1 2 1 . . . 2 2 1 . . . . . . . 1 Low Security (%) 85 | 100 100 100 . 100 84 100 100 86 20 90 100 100 100 77 . 8 100 100 . . . . 100 88 Level 1 12 | . . . . . 15 . . 13 36 9 . . . 14 91 91 . . . . . . . 11 Level 2 2 | . . . . . . . . . 43 . . . . 7 8 . . . . . . . . . Level 3 . | . . . . . . . . . . . . . . . . . . . . . . . . . Level 4 . | . . . . . . . . . . . . . . . . . . . . . . . . . Level 5 . | . . . . . . . . . . . . . . . . . . . . . . . . . High Security . | . . . . . . . . . . . . . . . . . . . . . . . . . Max Security . | . . . . . . . . . . . . . . . . . . . . . . . . . Peak Influence 486 | 10 65 40 . . 235 69 7 236 445 233 43 69 35 486 411 279 184 90 . . . . 40 287 Initial 266 | . . 13 . . . 51 7 . 95 233 . 23 35 . 266 148 75 86 . . . . . . Average 73 | . 32 4 . . 107 21 . 122 315 74 10 34 14 122 305 238 62 36 . . . . 5 60 Influence Increases 5626 | 15 105 50 . . 519 267 . 433 430 119 73 96 43 1107 355 289 345 66 15 295 . 230 154 620 Destroy 0b10 Robot/C 2240 | . 40 40 . . 280 100 . 200 300 60 . 40 . 560 160 80 . . . 200 . 40 100 40 Destroy 0b10 Robot/NC 235 | 15 . . . . 45 60 . 10 . . . . 10 30 10 20 . 5 . . . . 15 15 Destroy Leader 352 | . 20 10 . . 44 50 . 40 30 20 . 10 2 64 . . . . . 20 . 10 22 10 Allied During Kill 749 | . . . . . . . . 118 55 2 . . . 340 134 100 . . . . . . . . Successful Hack 200 | . . . . . 20 14 . 16 . 16 21 . . . 7 . 10 15 . . . . . 81 Select Force Hacks 110 | . 30 . . . 30 . . . . . . . . . . . 50 . . . . . . . Disable Machine 255 | . . . . . . 15 . 45 . 15 15 15 . 30 . 75 15 . . . . . . 30 Destroy Structure 375 | . . . . . 55 28 . 4 . 6 7 16 16 38 44 14 30 16 . . . . 2 99 Partial Spotted 45 | . . . . . 15 . . . . . 15 . 15 . . . . . . . . . . . Lose Combat Pursuer 1065 | . 15 . . . 30 . . . 45 . 15 15 . 45 . . 240 30 15 75 . 180 15 345 Influence Decreases 5550 | 15 70 85 . . 405 359 22 296 122 564 40 60 112 631 460 443 386 242 15 278 17 230 154 544 Entered New Map 1080 | . . 22 . . . 63 15 . 42 212 . 10 34 . 210 223 142 90 . . 17 . . . Time Decay 2810 | 15 60 63 . . 295 296 7 176 . 322 40 . 62 201 160 150 60 152 15 258 . 180 124 174 Lost Part 697 | . 10 . . . 110 . . . . 10 . 30 . 110 10 50 47 . . 20 . 50 30 220 Lost Ally 813 | . . . . . . . . 120 80 20 . 20 16 320 80 20 137 . . . . . . . Purge Threat 150 | . . . . . . . . . . . . . . . . . . . . . . . . 150 Squads Dispatched 45 | . 1 . . . 5 8 . 1 . 4 . 1 1 2 . . 7 1 . . . 1 4 9 Investigation 14 | . 1 . . . 1 1 . . . 2 . . 1 2 . . 3 . . . . . 2 1 Extermination 8 | . . . . . . 2 . 1 . 1 . . . . . . . 1 . . . . . 3 Reinforcement 17 | . . . . . 3 3 . . . 1 . 1 . . . . 4 . . . . . 2 3 Assault 5 | . . . . . . 2 . . . . . . . . . . . . . . . 1 . 2 Garrison 1 | . . . . . 1 . . . . . . . . . . . . . . . . . . . Intercept . | . . . . . . . . . . . . . . . . . . . . . . . . . Searches Triggered . | . . . . . . . . . . . . . . . . . . . . . . . . . Construction Impeded 3 | . . . . . . . . . . 1 . . . . . . . . . . . . 1 1 Haulers Reinforced . | . . . . . . . . . . . . . . . . . . . . . . . . . Active Scanning Responses . | . . . . . . . . . . . . . . . . . . . . . . . . . Cargo Convoy Interrupts 1 | . . . . . . 1 . . . . . . . . . . . . . . . . . . Stealth | -11 -10 -10 -10 -9 -8 -7 -7 -7 -7 -7 -6 -6 -5 -5 -5 -5 -5 -4 -4 -4 -4 -3 -3 -2 --------- Run | Yrd Mat Min Exi Min Mat Fac Was Fac Gar Fac Fac DSF Fac Ext Cet Arc Hub Fac Upp Upp War Pro Res Res Distress Signals 17 | . . . . . 2 1 . . . . . . 1 2 2 . 2 1 . . . . 5 1 Communications Jammed . | . . . . . . . . . . . . . . . . . . . . . . . . . Distress Signals . | . . . . . . . . . . . . . . . . . . . . . . . . . Times Spotted 268 | . 5 9 . . 26 9 6 7 14 7 1 4 5 30 10 25 25 1 2 19 1 8 11 43 Peak Tracking Total 19 | . 3 6 . . 8 2 6 4 5 2 1 4 5 6 5 3 19 4 1 5 1 8 4 19 Tactical Retreats 33 | . 1 1 . . 2 . . . 2 . 1 1 . 2 . . 4 1 1 4 . 6 1 6 Traps | -11 -10 -10 -10 -9 -8 -7 -7 -7 -7 -7 -6 -6 -5 -5 -5 -5 -5 -4 -4 -4 -4 -3 -3 -2 ------- Run | Yrd Mat Min Exi Min Mat Fac Was Fac Gar Fac Fac DSF Fac Ext Cet Arc Hub Fac Upp Upp War Pro Res Res Traps Triggered 21 | . . . . . 3 3 . . 1 1 1 . 1 4 . . 3 2 . . . . 1 1 Indirectly 1 | . . . . . . . . . . . . . . . . . . . . . . . . 1 Trap Hack Attempts . | . . . . . . . . . . . . . . . . . . . . . . . . . Triggered . | . . . . . . . . . . . . . . . . . . . . . . . . . Disarmed 6 | . . . . . . . . . . . . . . . . . . 6 . . . . . . Reprogrammed . | . . . . . . . . . . . . . . . . . . . . . . . . . Reused . | . . . . . . . . . . . . . . . . . . . . . . . . . Traps Extracted . | . . . . . . . . . . . . . . . . . . . . . . . . . Installed . | . . . . . . . . . . . . . . . . . . . . . . . . . Triggered . | . . . . . . . . . . . . . . . . . . . . . . . . . Machines | -11 -10 -10 -10 -9 -8 -7 -7 -7 -7 -7 -6 -6 -5 -5 -5 -5 -5 -4 -4 -4 -4 -3 -3 -2 ---------- Run | Yrd Mat Min Exi Min Mat Fac Was Fac Gar Fac Fac DSF Fac Ext Cet Arc Hub Fac Upp Upp War Pro Res Res Machines Disabled 22 | . . . . . . 1 . 3 . 1 1 1 . 2 . 5 1 . 1 1 3 . . 2 Max in Single Turn 1 | . . . . . . 1 . . . 1 1 1 . 1 . 1 1 . 1 1 1 . . 1 Garrison Access 2 | . . . . . . 1 . . . . . . . . . . . . . . . . . 1 Network Hub 1 | . . . . . . . . . . . . . . . . . 1 . . . . . . . Machines Repaired . | . . . . . . . . . . . . . . . . . . . . . . . . . Machines Dismantled 4 | . . . . . . . . . . . . . . 1 . . . . . . 3 . . . Machines Sabotaged 1 | . . . . . . . . . . . . . . . . . 1 . . . . . . . Overloaded Fab Kills . | . . . . . . . . . . . . . . . . . . . . . . . . . Hacking | -11 -10 -10 -10 -9 -8 -7 -7 -7 -7 -7 -6 -6 -5 -5 -5 -5 -5 -4 -4 -4 -4 -3 -3 -2 --------- Run | Yrd Mat Min Exi Min Mat Fac Was Fac Gar Fac Fac DSF Fac Ext Cet Arc Hub Fac Upp Upp War Pro Res Res Machines Accessed 57 | . 2 1 1 . 4 6 . 1 1 6 5 . 4 7 1 . 4 6 1 1 1 . 1 4 Terminals 37 | . 1 . . . 2 3 . . 1 5 3 . 4 7 1 . 4 3 . 1 . . . 2 Fabricators 3 | . . . . . . . . . . . . . . . . . . 2 . . . . . 1 Repair Stations 1 | . . . . . . . . . . . . . . . . . . 1 . . . . . . Recycling Units 5 | . 1 . . . 1 1 . . . . 1 . . . . . . . . . . . 1 . Scanalyzers 2 | . . . . . . 1 . . . . . . . . . . . . . . . . . 1 Garrison Access 5 | . . . . . 1 1 . 1 . 1 1 . . . . . . . . . . . . . Total Hacks 169 | . 3 1 1 . 11 13 . 1 2 10 10 . 19 21 1 . 20 32 1 1 1 . 5 16 Successful 92 | . 3 1 1 . 8 8 . 1 . 1 4 . 10 10 1 . 11 19 1 1 1 . 2 9 Failed 77 | . . . . . 3 5 . . 2 9 6 . 9 11 . . 9 13 . . . . 3 7 Catastrophic 16 | . . . . . 1 1 . . 1 5 2 . 2 2 . . . 2 . . . . . . Database Lockouts . | . . . . . . . . . . . . . . . . . . . . . . . . . Manual 90 | . 1 . 1 . 7 11 . . 2 7 4 . 16 12 1 . 10 14 . 2 . . . 2 Terminals 129 | . 1 . . . 6 9 . . 2 9 6 . 19 21 1 . 20 24 . 1 . . . 10 Fabricators 8 | . . . . . . . . . . . . . . . . . . 6 . . . . . 2 Repair Stations 2 | . . . . . . . . . . . . . . . . . . 2 . . . . . . Recycling Units 14 | . 2 . . . 4 1 . . . . 2 . . . . . . . . . . . 5 . Scanalyzers 5 | . . . . . . 1 . . . . . . . . . . . . . . . . . 4 Garrison Access 7 | . . . . . 1 2 . 1 . 1 2 . . . . . . . . . . . . . Terminal Hacks 44 | . 1 1 1 . 2 1 . . . . 1 . 6 5 1 . 6 11 1 1 1 . . 5 Record 1 | . . . . . . . . . . . . . . . . . . . . 1 . . . . Prototype ID Bank 2 | . . . . . . . . . . . . . 1 . . . . 1 . . . . . . Open Door 6 | . . 1 . . . . . . . . . . . 2 1 . . . 1 . 1 . . . Open DSF 2 | . . . . . . . . . . . 1 . . . . . . 1 . . . . . . Level Access Points 4 | . 1 . . . . . . . . . . . . . . . 1 1 . . . . . 1 Branch Access Points 4 | . . . . . . 1 . . . . . . 1 . . . 1 1 . . . . . . Emergency Access Points 2 | . . . . . . . . . . . . . . . . . 1 . . . . . . 1 Machine Index 1 | . . . . . . . . . . . . . . . . . 1 . . . . . . . Terminal Index 4 | . . . . . 1 . . . . . . . 1 . . . . 1 . . . . . 1 Unreport Threat 1 | . . . . . . . . . . . . . . . . . . . . . . . . 1 Disarm Traps 1 | . . . . . . . . . . . . . . . . . . 1 . . . . . . Dispatch Records 2 | . . . . . . . . . . . . . . 1 . . . 1 . . . . . . Patrol Status 1 | . . . . . . . . . . . . . . . . . . 1 . . . . . . Recall Investigation 1 | . . . . . . . . . . . . . 1 . . . . . . . . . . . Registered Components 2 | . . . . . . . . . . . . . . 1 . . . 1 . . . . . . Registered Prototypes 1 | . . . . . . . . . . . . . . . . . . 1 . . . . . . Zone Layout 8 | . . . . . 1 . . . . . . . 2 1 . . 2 1 . . . . . 1 Proto ID Catalog 1 | . . . 1 . . . . . . . . . . . . . . . . . . . . . Fabricator Hacks 2 | . . . . . . . . . . . . . . . . . . 2 . . . . . . Network Status 2 | . . . . . . . . . . . . . . . . . . 2 . . . . . . Repair Station Hacks 1 | . . . . . . . . . . . . . . . . . . 1 . . . . . . Refit 1 | . . . . . . . . . . . . . . . . . . 1 . . . . . . Recycling Unit Hacks 7 | . 1 . . . 2 1 . . . . 1 . . . . . . . . . . . 2 . Report Inventory 6 | . 1 . . . 1 1 . . . . 1 . . . . . . . . . . . 2 . Retrieve Components 1 | . . . . . 1 . . . . . . . . . . . . . . . . . . . Scanalyzer 3 | . . . . . . 1 . . . . . . . . . . . . . . . . . 2 Insert Component 2 | . . . . . . 1 . . . . . . . . . . . . . . . . . 1 Analyze 1 | . . . . . . . . . . . . . . . . . . . . . . . . 1 Garrison Access Hacks 1 | . . . . . . . . 1 . . . . . . . . . . . . . . . . Unlock Access 1 | . . . . . . . . 1 . . . . . . . . . . . . . . . . Unauthorized Hacks 33 | . 1 . . . 4 4 . . . 1 2 . 4 5 . . 5 5 . . . . . 2 Terminals 28 | . . . . . 2 4 . . . 1 2 . 4 5 . . 5 3 . . . . . 2 Assimilate 3 | . . . . . . 1 . . . . . . 2 . . . . . . . . . . . Botnet 20 | . . . . . 2 3 . . . 1 2 . 2 4 . . 2 2 . . . . . 2 Operators 1 | . . . . . . . . . . . . . . . . . . 1 . . . . . . Sabotage 4 | . . . . . . . . . . . . . . 1 . . 3 . . . . . . . Fabricators 2 | . . . . . . . . . . . . . . . . . . 2 . . . . . . Report 2 | . . . . . . . . . . . . . . . . . . 2 . . . . . . Repair Stations . | . . . . . . . . . . . . . . . . . . . . . . . . . Recycling Units 2 | . 1 . . . 1 . . . . . . . . . . . . . . . . . . . Tunnel 2 | . 1 . . . 1 . . . . . . . . . . . . . . . . . . . Scanalyzers . | . . . . . . . . . . . . . . . . . . . . . . . . . Garrison Access 1 | . . . . . 1 . . . . . . . . . . . . . . . . . . . Reprogram 1 | . . . . . 1 . . . . . . . . . . . . . . . . . . . Data Cores Recovered . | . . . . . . . . . . . . . . . . . . . . . . . . . Used . | . . . . . . . . . . . . . . . . . . . . . . . . . Hacking Detections 39 | . . . . . 3 5 . . 1 6 4 . 4 5 . . 3 3 . . . . 1 4 Full Trace Events 7 | . . . . . 1 1 . . . 2 . . 1 1 . . . . . . . . 1 . Feedback Events 1 | . . . . . . . . . . 1 . . . . . . . . . . . . . . Corruption 1 | . . . . . . . . . . 1 . . . . . . . . . . . . . . Feedback Blocked 1 | . . . . . . . . . . . . . . . . . . . . . . . 1 . Robot Schematics Acquired . | . . . . . . . . . . . . . . . . . . . . . . . . . Robots Built . | . . . . . . . . . . . . . . . . . . . . . . . . . Authchips . | . . . . . . . . . . . . . . . . . . . . . . . . . Time . | . . . . . . . . . . . . . . . . . . . . . . . . . Total Robot Build Rating . | . . . . . . . . . . . . . . . . . . . . . . . . . Part Schematics Acquired 1 | . . . . . . . . . . . . . . . . . . . . . . . . 1 Parts Built . | . . . . . . . . . . . . . . . . . . . . . . . . . Authchips . | . . . . . . . . . . . . . . . . . . . . . . . . . Time . | . . . . . . . . . . . . . . . . . . . . . . . . . Total Part Build Rating . | . . . . . . . . . . . . . . . . . . . . . . . . . Parts Repaired . | . . . . . . . . . . . . . . . . . . . . . . . . . Time . | . . . . . . . . . . . . . . . . . . . . . . . . . Parts Recycled . | . . . . . . . . . . . . . . . . . . . . . . . . . Recycled Matter . | . . . . . . . . . . . . . . . . . . . . . . . . . Retrieved Matter . | . . . . . . . . . . . . . . . . . . . . . . . . . Retrieved Components 9 | . . . . . 9 . . . . . . . . . . . . . . . . . . . Parts Scanalyzed 1 | . . . . . . . . . . . . . . . . . . . . . . . . 1 Part Schematics Acquired 1 | . . . . . . . . . . . . . . . . . . . . . . . . 1 Parts Damaged . | . . . . . . . . . . . . . . . . . . . . . . . . . Bothacking | -11 -10 -10 -10 -9 -8 -7 -7 -7 -7 -7 -6 -6 -5 -5 -5 -5 -5 -4 -4 -4 -4 -3 -3 -2 ------------ Run | Yrd Mat Min Exi Min Mat Fac Was Fac Gar Fac Fac DSF Fac Ext Cet Arc Hub Fac Upp Upp War Pro Res Res Used RIF Installer 1 | . . . . . . . . . 1 . . . . . . . . . . . . . . . Robots Hacked 2 | . . . . . . . . . . . . . . 1 . 1 . . . . . . . . Non-combat 1 | . . . . . . . . . . . . . . . . 1 . . . . . . . . Combat 1 | . . . . . . . . . . . . . . 1 . . . . . . . . . . Robot Hacks Applied 2 | . . . . . . . . . . . . . . 1 . 1 . . . . . . . . parse_system 1 | . . . . . . . . . . . . . . 1 . . . . . . . . . . check_alert 1 | . . . . . . . . . . . . . . . . 1 . . . . . . . . Relay Couplers Released 4 | . . . . . . 3 . . . . . . . . . . . . . . . . . 1 Machine Destruction 4 | . . . . . . 3 . . . . . . . . . . . . . . . . . 1 Fabnet Peak Effective % . | . . . . . . . . . . . . . . . . . . . . . . . . . Robots Rewired 23 | . . . . . . . . . . . 1 . . 22 . . . . . . . . . . Allies Hacked 1 | . . . . . . . . . . . . . 1 . . . . . . . . . . . Hacks Repelled . | . . . . . . . . . . . . . . . . . . . . . . . . . Allies | -11 -10 -10 -10 -9 -8 -7 -7 -7 -7 -7 -6 -6 -5 -5 -5 -5 -5 -4 -4 -4 -4 -3 -3 -2 -------- Run | Yrd Mat Min Exi Min Mat Fac Was Fac Gar Fac Fac DSF Fac Ext Cet Arc Hub Fac Upp Upp War Pro Res Res Total Allies 34 | . . . . . . . . . . . 1 . 2 26 5 . . . . . . . . . Largest Group 10 | . . . . . . . . . . . 1 1 1 10 10 9 7 . . . . . . . Highest-Rated Group 750 | . . . . . . . . . . . 25 25 10 423 750 729 539 . . . . . . . Highest-Rated Ally 159 | . . . . . . . . . . . 25 25 10 159 152 152 96 . . . . . . . Total Orders . | . . . . . . . . . . . . . . . . . . . . . . . . . Ally Attacks 585 | . . . . . . . 146 79 83 16 . . . 170 49 24 18 . . . . . . . Total Damage 11363 | . . . . . . . 2610 1222 994 202 . . . 3573 1431 854 477 . . . . . . . Kills 67 | . . . . . . . 6 12 11 1 . . . 24 8 5 . . . . . . . . Allies Corrupted 9 | . . . . . . . 5 1 . . . . . . . . 3 . . . . . . . Allies Melted 1 | . . . . . . . . . . . . . . 1 . . . . . . . . . . Intel | -11 -10 -10 -10 -9 -8 -7 -7 -7 -7 -7 -6 -6 -5 -5 -5 -5 -5 -4 -4 -4 -4 -3 -3 -2 ------- Run | Yrd Mat Min Exi Min Mat Fac Was Fac Gar Fac Fac DSF Fac Ext Cet Arc Hub Fac Upp Upp War Pro Res Res Active Infowar (turns) 7887 | 5 124 457 253 633 457 1405 314 522 255 868 153 76 157 574 . . . 250 380 600 204 200 . . Optics 4308 | . . . . . . 1389 314 522 255 868 153 76 157 574 . . . . . . . . . . Sensors 818 | . . . . 1 419 . . . . 216 153 29 . . . . . . . . . . . . Terrain 4070 | 5 124 457 253 631 313 653 . . . . . . . . . . . 250 380 600 204 200 . . Structural 602 | . . . . . . 552 50 . . . . . . . . . . . . . . . . . Seismic 1 | . . . . 1 . . . . . . . . . . . . . . . . . . . . Robot Analysis Total . | . . . . . . . . . . . . . . . . . . . . . . . . . Derelict Logs Recovered 5 | . . 1 . . . . . . . . . . . . . . . . 2 2 . . . . Drone Launches 36 | . . . . . . . 35 . 1 . . . . . . . . . . . . . . . Drone Recoveries 6 | . . . . . . . 5 1 . . . . . . . . . . . . . . . . Exploration | -11 -10 -10 -10 -9 -8 -7 -7 -7 -7 -7 -6 -6 -5 -5 -5 -5 -5 -4 -4 -4 -4 -3 -3 -2 ------------- Run | Yrd Mat Min Exi Min Mat Fac Was Fac Gar Fac Fac DSF Fac Ext Cet Arc Hub Fac Upp Upp War Pro Res Res Turns Passed 11634 | 83 124 457 253 636 1005 1412 314 522 255 868 153 76 157 883 327 304 163 354 380 600 204 641 849 614 Spaces Moved 11494 | 54 92 389 249 357 570 1058 87 117 107 1025 344 160 383 809 241 183 219 348 850 1009 404 767 604 1068 Core 441 | 1 . . . . 1 . 5 . . 1 . . . . . . 53 35 . . . 312 28 5 Treads 372 | . . . . . . . . 13 . 1 . . . . . . . . . . . . 328 30 Legs 34 | . . . . . 7 . . 27 . . . . . . . . . . . . . . . . Wheels 3239 | 53 92 389 249 357 553 1058 49 35 107 296 . . . . . . . 1 . . . . . . Hover 679 | . . . . . . . . 27 . . . . . . . 103 166 135 . . . . 248 . Flight 6729 | . . . . . 9 . 33 15 . 727 344 160 383 809 241 80 . 177 850 1009 404 455 . 1033 Fastest Speed 17 | 50 90 100 100 100 86 86 90 190 190 29 24 17 20 20 32 35 48 37 37 31 31 31 52 29 Average Speed 67 | 92 95 100 100 105 106 95 347 406 190 76 25 22 20 26 34 48 50 56 37 31 31 73 109 33 Slowest Speed 1350 | 100 100 100 100 115 260 105 1350 680 190 250 29 24 20 93 35 120 120 95 37 37 31 195 150 440 Overloaded Moves 20 | . . . . . . . . . . . . 20 . . . . . . . . . . . . Propulsion Burnouts . | . . . . . . . . . . . . . . . . . . . . . . . . . Robots Hopped 35 | . . . . . . . . . . 3 1 . 1 6 . . . . . . . . . 24 Potential Cave-ins 9 | . . . . . . . . . . . . . . . . . . . . 2 . . . 7 Cave-ins Triggered 2 | . . . . . . . . . . . . . . . . . . . . . . 1 . 1 Exploration Rate (%) 47 | 5 20 72 62 59 38 33 74 9 26 32 8 96 14 85 78 96 30 11 84 91 27 91 16 29 Regions Visited 24 Branch Regions 11 Pre-discovered Areas 3 | . 1 . . . 1 . . . . . . . . . . . . . 1 . . . . . Known Exits Taken 15 | . . . . . 1 . . 1 . 1 1 . 1 1 1 1 1 1 1 1 1 1 1 . Unknown Exits Taken 5 | 1 1 1 1 1 . . . . . . . . . . . . . . . . . . . . Scrap Searched 12 | . . 1 . 2 . . . . . . . . . . . . . . 2 3 . 4 . . Spaces Dug 105 | . . . . . 10 27 . . . 5 7 2 8 5 . . 8 9 2 6 3 10 . 3 Terrain Destroyed 262 | . . . . . 67 27 . . . 5 7 25 8 5 3 6 8 9 4 19 3 20 . 46 Melee 95 | . . . . . 10 27 . . . 5 7 2 8 5 . . 8 9 2 6 3 3 . . Projectile 46 | . . . . . . . . . . . . . . . 3 6 . . 2 13 . 17 . 5 AOE 121 | . . . . . 57 . . . . . . 23 . . . . . . . . . . . 41 Terrain Rammed . | . . . . . . . . . . . . . . . . . . . . . . . . . Walls Destroyed . | . . . . . . . . . . . . . . . . . . . . . . . . . Machines Disabled . | . . . . . . . . . . . . . . . . . . . . . . . . . Actions | -11 -10 -10 -10 -9 -8 -7 -7 -7 -7 -7 -6 -6 -5 -5 -5 -5 -5 -4 -4 -4 -4 -3 -3 -2 --------- Run | Yrd Mat Min Exi Min Mat Fac Was Fac Gar Fac Fac DSF Fac Ext Cet Arc Hub Fac Upp Upp War Pro Res Res Total 14507 | 76 106 428 255 616 868 1335 102 147 133 1089 388 187 439 1381 466 357 252 486 902 1234 456 812 732 1260 Wait 1920 | 5 . 5 . 251 182 153 9 11 3 10 28 6 22 435 203 125 5 93 34 150 28 11 32 119 Move 11404 | 53 91 388 248 356 569 1058 86 116 105 1018 341 159 380 796 240 182 218 347 849 1008 403 766 603 1024 Hop 31 | . . . . . . . . . . 3 1 . 1 6 . . . . . . . . . 20 Pick Up 85 | 6 3 7 1 1 7 9 1 . 1 5 1 4 2 9 1 . 1 1 . 2 . . 11 12 Fast Attach 132 | 6 . 2 . 3 13 4 2 3 . 11 2 3 2 11 1 7 5 9 4 6 . 3 23 12 Attach 56 | 1 1 1 . . 12 3 2 1 . 1 1 1 2 7 . . . 2 . 2 . 2 3 14 Detach 33 | . . . . . 8 1 2 . . 4 . 1 1 1 1 . . 2 . 4 . 2 3 3 Swap 70 | . . 3 . 1 3 15 . 4 2 6 3 3 2 11 3 4 1 . 1 3 1 2 1 1 Drop 97 | 1 . 1 6 4 3 9 . . . 10 . 3 . 6 3 1 3 . 4 8 . 1 13 21 Fire 366 | 4 11 21 . . 41 12 . 12 16 15 3 2 . 52 9 37 3 1 7 43 . 20 23 34 Melee 201 | . . . . . 29 63 . . 6 6 8 5 12 29 5 1 8 10 3 8 3 5 . . Ram 4 | . . . . . 1 . . . . . . . . . . . 3 . . . . . . . Kick . | . . . . . . . . . . . . . . . . . . . . . . . . . Crush 7 | . . . . . . . . . . . . . . . . . . . . . . . 7 . Escape Stasis 72 | . . . . . . 8 . . . . . . 15 10 . . 5 21 . . . . 13 . Rewire . | . . . . . . . . . . . . . . . . . . . . . . . . . Trap . | . . . . . . . . . . . . . . . . . . . . . . . . . Miscellaneous 29 | . . . . . . . . . . . . . . 8 . . . . . . 21 . . . Route ------- -11/Scrapyard -10/Materials (discovered 4 exits: Mat x3 / *Min) -10/Mines (discovered 3 exits: *Mat x2 / *Exi) -10/Exiles -9/Mines -8/Materials (discovered 2 exits: *Fac x2) -7/Factory (discovered 2 exits: Low x2) -7/Waste -7/Factory -7/Garrison -7/Factory -6/Factory (discovered 2 exits: *Fac / DSF) -6/DSF -5/Factory (discovered 6 exits: *Fac x2 / Upp x2 / *Ext x2) -5/Extension (discovered 2 exits: *Fac / *Cet) -5/Cetus (discovered 2 exits: *Fac / *Arc) -5/Archives (discovered 3 exits: *Fac / *Hub x2) -5/Hub_04(d) (discovered 4 exits: *Fac x4) -4/Factory (discovered 8 exits: Res x4 / *Upp x2 / Arm / DSF) -4/Upper Caves -4/Upper Caves (discovered 2 exits: *Res / *War) -4/Warlord -3/Proximity Caves -3/Research (discovered 3 exits: *Res x2 / Tes) -2/Research (discovered 3 exits: Acc x3) History --------- Turn | Location | Event 23 | -11/Scrapyard | Discovered new exit (range 15) 84 | -11/Scrapyard | Entered Materials 120 | -10/Materials | Identified exit to Materials 184 | -10/Materials | Discovered new exit (range 3) 208 | -10/Materials | Entered Mines 256 | -10/Mines | Deemed a non-threat by the Exiles lab entrance 256 | -10/Mines | Discovered new exit (range 5) 304 | -10/Mines | Build established: Mutant 329 | -10/Mines | Found a Scrap Suit stashed away for nefarious purposes 331 | -10/Mines | Found Scrap Suit 356 | -10/Mines | Discovered exit to Materials (range 6) 423 | -10/Mines | Found a damaged Exp. Sensor Array with a note attached 425 | -10/Mines | Found Prototype Device 444 | -10/Mines | Discovered exit to Materials (range 8) 485 | -10/Mines | Met a Derelict who couldn't figure out how to use a Trap Extractor 511 | -10/Mines | Assembled infested the area 544 | -10/Mines | Learned location of 1 exit from Materials 665 | -10/Mines | Entered Exiles 689 | -10/Exiles | Met 8R-AWN 704 | -10/Exiles | Met EX-HEX 740 | -10/Exiles | Met EX-BIN 754 | -10/Exiles | Aligned with FarCom system 755 | -10/Exiles | Given EX-Vault access code 778 | -10/Exiles | Opened EX-Vault 796 | -10/Exiles | Found Army-in-a-Box 817 | -10/Exiles | Warned to stay clear of 0b10 Research branches 847 | -10/Exiles | Met EX-DEC 906 | -10/Exiles | Discovered new exit (range 14) 918 | -10/Exiles | Left Exiles lab with Army-in-a-Box 918 | -10/Exiles | Entered Mines 1215 | -9/Mines | Build established: Skirmisher 1445 | -9/Mines | Discovered new exit (range 10) 1464 | -9/Mines | Found a hidden stash of uninstalled traps 1553 | -9/Mines | Identified Exp. Sensor Array 1554 | -9/Mines | Entered Materials 1554 | -8/Materials | Evolved 4 slots: Propulsion x1, Utility x3 1555 | -8/Materials | Identified exit to Factory 1848 | -8/Materials | Build established: Assassin 1934 | -8/Materials | Garrison activated, responded to threat 1962 | -8/Materials | Destroyed 7 combat bots 2011 | -8/Materials | Core integrity fell below 50% 2028 | -8/Materials | Lost 9 parts (1p2n2u4w) 2264 | -8/Materials | Build established: Mutant 2421 | -8/Materials | Discovered exit to Factory (range 13) 2559 | -8/Materials | Entered Factory 2559 | -7/Factory | Evolved 2 slots: Utility x2 2892 | -7/Factory | Build established: Assassin 3283 | -7/Factory | Cargo convoy interrupted 3894 | -7/Factory | Identified exit to Lower Caves 3971 | -7/Factory | Sucked down chute 3971 | -7/Factory | Entered Waste 3972 | -7/Waste | Spotted C-40 Crusher 3986 | -7/Waste | EMP discharged 3986 | -7/Waste | System corruption reached 10% 3989 | -7/Waste | Spotted C-40 Crusher 3992 | -7/Waste | Spotted C-40 Crusher 4004 | -7/Waste | Spotted C-40 Crusher 4012 | -7/Waste | Spotted C-40 Crusher 4017 | -7/Waste | Crushed by Compactor (1 part destroyed, 2 dropped) 4021 | -7/Waste | Crushed by Compactor (0 parts destroyed, 2 dropped) 4025 | -7/Waste | Spotted C-40 Crusher 4029 | -7/Waste | Crushed by Compactor (1 part destroyed, 1 dropped) 4037 | -7/Waste | Discovered new exit (range 20) 4043 | -7/Waste | Allies destroyed C-40 Crusher 4057 | -7/Waste | Allies destroyed C-40 Crusher 4065 | -7/Waste | Lost 4 parts (2n1u1w) 4078 | -7/Waste | Core integrity fell below 50% 4081 | -7/Waste | Allies destroyed C-40 Crusher 4085 | -7/Waste | Allies destroyed C-40 Crusher 4086 | -7/Waste | EMP discharged 4091 | -7/Waste | Allies destroyed C-40 Crusher 4097 | -7/Waste | Allies destroyed C-40 Crusher 4128 | -7/Waste | Lost 13 allies 4186 | -7/Waste | EMP discharged 4186 | -7/Waste | System corruption reached 30% 4220 | -7/Waste | Lost 5 allies 4285 | -7/Waste | Entered Factory 4285 | -7/Factory | Accompanied by 12 allies 4316 | -7/Factory | Build established: Mutant 4790 | -7/Factory | Identified exit to Garrison 4807 | -7/Factory | Entered Garrison 4807 | -7/Garrison | Accompanied by 4 allies 4823 | -7/Garrison | Lost 3 allies 4851 | -7/Garrison | Installed Relay Interface Framework 4951 | -7/Garrison | Triggered checkpoint 4959 | -7/Garrison | Build established: Scavenger-Mutant 5047 | -7/Garrison | Discovered new exit (range 8) 5062 | -7/Garrison | Entered Factory 5062 | -7/Factory | Accompanied by 1 ally 5658 | -7/Factory | Build established: Mutant 5895 | -7/Factory | Discovered new exit (range 15) 5900 | -7/Factory | Identified exit to Factory 5930 | -7/Factory | Entered another Factory area 5930 | -6/Factory | Evolved 2 slots: Propulsion x2 5959 | -6/Factory | Discovered new exit (range 3) 5960 | -6/Factory | Identified exit to Factory 5976 | -6/Factory | Build established: Scout 6055 | -6/Factory | Allied Derelicts emerged from ambush trap array 6074 | -6/Factory | Identified exit to DSF 6083 | -6/Factory | Entered DSF 6083 | -6/DSF | Accompanied by 1 ally 6108 | -6/DSF | Additional patrols routed to DSF 6140 | -6/DSF | Discovered exit to Factory (range 18) 6159 | -6/DSF | Entered Factory 6159 | -5/Factory | Evolved 2 slots: Power x1, Propulsion x1 6166 | -5/Factory | Lost 3 parts (2u1w) 6184 | -5/Factory | Identified exit to Upper Caves 6184 | -5/Factory | Identified exit to Extension 6254 | -5/Factory | Discovered new exit (range 7) 6255 | -5/Factory | Identified exit to Factory 6267 | -5/Factory | Discovered exit to Factory (range 15) 6316 | -5/Factory | Entered Extension 6401 | -5/Extension | Build established: Hacker-Sprinter 6446 | -5/Extension | Rescued a captive Derelict 6769 | -5/Extension | Lost 4 parts (2n2u) 6874 | -5/Extension | Spotted B-75 Beast 6876 | -5/Extension | Rescued A7 6886 | -5/Extension | Spotted B-75 Beast 6917 | -5/Extension | Rescued a captive Derelict 6917 | -5/Extension | Rescued a captive Derelict 6948 | -5/Extension | Lost 7 allies 7062 | -5/Extension | Lost 4 allies 7137 | -5/Extension | Discovered exit to Factory (range 10) 7138 | -5/Extension | Discovered new exit (range 6) 7151 | -5/Extension | Identified exit to Cetus 7199 | -5/Extension | Entered Cetus 7199 | -5/Cetus | Accompanied by 8 allies (A7) 7204 | -5/Cetus | Acquired a Cetus Manufacturing Module code from A7 7204 | -5/Cetus | Spotted Cetus Guard 7204 | -5/Cetus | Spotted Cetus Guard 7221 | -5/Cetus | Spotted Cetus Guard 7221 | -5/Cetus | Spotted Cetus Guard 7222 | -5/Cetus | Allies destroyed Cetus Guard 7229 | -5/Cetus | Allies destroyed Cetus Guard 7236 | -5/Cetus | Allies destroyed Cetus Guard 7243 | -5/Cetus | Destroyed Cetus Guard 7265 | -5/Cetus | Started Cetus Manufacturing Module 7270 | -5/Cetus | Lost 3 allies 7275 | -5/Cetus | Escorted A7 to Cetus Mainframe 7290 | -5/Cetus | Manufactured an Enhanced Grunt 7315 | -5/Cetus | Manufactured an Enhanced Grunt 7340 | -5/Cetus | Manufactured an Enhanced Grunt 7365 | -5/Cetus | Manufactured an Enhanced Grunt 7390 | -5/Cetus | Manufactured an Enhanced Grunt 7420 | -5/Cetus | Discovered new exit (range 15) 7435 | -5/Cetus | Spotted Cetus Guard 7436 | -5/Cetus | Spotted Cetus Guard 7437 | -5/Cetus | Spotted Cetus Guard 7439 | -5/Cetus | Spotted Cetus Guard 7445 | -5/Cetus | Allies destroyed Cetus Guard 7450 | -5/Cetus | Allies destroyed Cetus Guard 7451 | -5/Cetus | Destroyed Cetus Guard 7452 | -5/Cetus | Allies destroyed Cetus Guard 7455 | -5/Cetus | Discovered exit to Factory (range 16) 7459 | -5/Cetus | Met Revision 17 7475 | -5/Cetus | Identified exit to Archives 7526 | -5/Cetus | Entered Archives 7526 | -5/Archives | Accompanied by 9 allies (A7) 7531 | -5/Archives | Received a hacking code to weaken MAIN.C 7611 | -5/Archives | Lost 5 parts (2p2n1w) 7633 | -5/Archives | Build established: Commander-Mutant 7678 | -5/Archives | Discovered exit to Factory (range 4) 7737 | -5/Archives | Discovered new exit (range 15) 7780 | -5/Archives | Identified exit to Hub_04(d) 7790 | -5/Archives | Discovered exit to Hub_04(d) (range 15) 7830 | -5/Archives | Entered Hub_04(d) 7830 | -5/Hub_04(d) | Accompanied by 7 allies 7831 | -5/Hub_04(d) | Network Hub disabled 7844 | -5/Hub_04(d) | Spotted Lightning 7845 | -5/Hub_04(d) | Spotted Lightning 7868 | -5/Hub_04(d) | Spotted Lightning 7873 | -5/Hub_04(d) | Spotted Lightning 7874 | -5/Hub_04(d) | Spotted Lightning 7888 | -5/Hub_04(d) | Lost 7 allies 7956 | -5/Hub_04(d) | Core integrity fell below 50% 7984 | -5/Hub_04(d) | Lost 4 parts (4n) 7993 | -5/Hub_04(d) | Entered Factory 7993 | -4/Factory | Evolved 2 slots: Utility x2 7999 | -4/Factory | Identified exit to Upper Caves 7999 | -4/Factory | Identified exit to Armory 7999 | -4/Factory | Identified exit to Research 8267 | -4/Factory | Identified exit to DSF 8347 | -4/Factory | Entered Upper Caves 8365 | -4/Upper Caves | Attracted the attention of an 0b10 checkpoint 8571 | -4/Upper Caves | Discovered new exit (range 10) 8574 | -4/Upper Caves | Identified exit to Upper Caves 8616 | -4/Upper Caves | Attacked by a delusional Derelict stockpiling parts 8626 | -4/Upper Caves | Learned Research emergency access door positions 8643 | -4/Upper Caves | Build established: Hacker-Mutant 8727 | -4/Upper Caves | Entered another Upper Caves area 8732 | -4/Upper Caves | Found DCF Scrap (10 items) 8753 | -4/Upper Caves | Learned 8 Research zone layouts 8754 | -4/Upper Caves | Discovered exit to Research (range 16) 8809 | -4/Upper Caves | Learned Research terminal intel 9026 | -4/Upper Caves | Acquired the password to a Derelict Tinkerer's latest research 9028 | -4/Upper Caves | Found Prototype Special Weapon 9028 | -4/Upper Caves | Identified Molecular Deconstructor 9245 | -4/Upper Caves | Build established: Hacker-Sprinter 9283 | -4/Upper Caves | Spotted B-86 Titan 9318 | -4/Upper Caves | Caught by Unaware searching for contraband prototypes 9324 | -4/Upper Caves | Discovered new exit (range 7) 9326 | -4/Upper Caves | Identified exit to Warlord 9327 | -4/Upper Caves | Entered Warlord 9366 | -4/Warlord | Opened side exit 9373 | -4/Warlord | RIF detected upon attempting to enter Warlord's base 9373 | -4/Warlord | Attacked by Warlord forces 9396 | -4/Warlord | Discovered new exit (range 13) 9399 | -4/Warlord | Identified exit to Proximity Caves 9470 | -4/Warlord | Spotted 7M-FZ8(B) 9470 | -4/Warlord | Spotted RQ-AQ1(B) 9531 | -4/Warlord | Entered Proximity Caves 9565 | -3/Proximity Caves | Attracted the attention of an 0b10 checkpoint 9628 | -3/Proximity Caves | Attracted the attention of an 0b10 outpost 9708 | -3/Proximity Caves | Crushed by falling debris 9735 | -3/Proximity Caves | System corruption reached 10% 9762 | -3/Proximity Caves | Lost 5 parts (2n2u1w) 9783 | -3/Proximity Caves | Spotted B-86 Titan 9903 | -3/Proximity Caves | Discovered exit to Research (range 8) 10008 | -3/Proximity Caves | Build established: Hacker-Mutant 10172 | -3/Proximity Caves | Entered Research 10172 | -3/Research | Evolved 2 slots: Power x1, Weapon x1 10173 | -3/Research | Identified exit to Research 10173 | -3/Research | Identified exit to Testing 10175 | -3/Research | Loaded intel: 21 terminal locations 10315 | -3/Research | Lost 4 parts (1p1n1u1w) 10372 | -3/Research | Revision forces began assault on 0b10 10430 | -3/Research | Met up with Revision 17++ 10649 | -3/Research | Found Hellfire Missile Launcher 10750 | -3/Research | Build established: Hacker-Skirmisher 10872 | -3/Research | Research terminal network offline 11021 | -3/Research | Entered another Research area 11021 | -2/Research | Evolved 2 slots: Utility x1, Weapon x1 11360 | -2/Research | Build established: Hacker-Sprinter 11460 | -2/Research | Spotted B-90 Cyclops 11591 | -2/Research | Identified exit to Access 11621 | -2/Research | Core integrity fell below 50% 11630 | -2/Research | Crushed by falling debris 11630 | -2/Research | System corruption reached 10% 11631 | -2/Research | Core integrity fell below 20% 11635 | -2/Research | Destroyed by P-80 Master with Gamma Rifle Last Messages --------------- Xenon Bombardment Thruster destroyed. P-80 Master resets P-80 Master, system corruption cleaned. Hacking Suite destroyed. System corrupted: Component data lost. The unstable cave ceiling collapses. Crushed by falling debris. Imp. Hacking Suite destroyed. System corrupted by crushing effect (+2). Adv. Terrain Scan Processor destroyed. System corrupted by crushing effect (+1). Enh. Hardcell Cannon destroyed. Adv. Signal Interpreter destroyed. Imp. Plasma Cutter destroyed. P-80 Master resets P-80 Master, system corruption cleaned. P-80 Master repels hacking attempt. S-43 Plague destroyed. Imp. Targeting Computer destroyed. [Achievement: 20k Club] Map ----- +----------------------------------------------------+ | ?????????????????????????????????????????????????? | | ?????????????????????????????????????????????????? | | ?????????????????????????????????????????????????? | | ?????????????????????????????????????????????????? | | ?????????????????????????????????????????????????? | | ?????????????????????????????????????????????????? | | ?????????????????????????????????????????????????? | | ???????????????????????#########?######??????????? | | ???????????????????????# ?# ##?????????? | | ???????????????????????# # T#?????????? | | ???????????????????????# # #?????????? | | ???????????????????????# + #??????????? | | ???????????????????????# = # #??????????? | | ???????????????????????# # #??????????? | | ???????????????????????# = ?# #??????????? | | ???????????????????????# ?# #??????????? | | ???????????????????????########??# #??????????? | | ???????????????????Y??????? #????# #??????????? | | ??????????????????????????? #????# #??????????? | | ??????????????????????????? #????# #??????????? | | ????????????????????????###s###### #??????????? | | ????????????????????????# s%= # #??????????? | | ????????????????????????# *s[ p # #??????????? | | ??????????????????????###=s s # #??????????? | | ??????????????????????# spssss # #??????????? | | ??????????????????????###@ s p ; +??????????? | | ???????????Y????????????#" " p# #??????????? | | ????????????????????????# " # #??????????? | | ????????????????????????# ! # #??????????? | | ????????????????????????# # # "??????? | | ????????????????????????########## [ #####??????? | | ?????????????????????????????????#=% #??????????? | | ?????????????????????????????????# * #??????????? | | ?????????????????????????????????# #??????????? | | ???????????????????????########### #??????????? | | ???????????????????????# # #??????????? | | ???????????????????????# # #??????????? | | ???????????????????????# """ # #??????????? | | ???????????????????????# """" # #??????????? | | ???????????????????????# """" / #??????????? | | ???????????????????????# """ # #??????????? | | ???????????????????????# # #####??????? | | ???????????????????????# # # ??????? | | ???????????????################### # ??????? | | ???????????????# """T""" # # ??????? | | ???????????????# # # ??????? | | ???????????????# # % + ??????? | | ???????????????# """""" # * # ??????? | | ???????????????# = """""" # # ??????? | | ???????????????# """""" # # ??????? | +----------------------------------------------------+ Best States ------------- Heat Dissipation 68 Energy Generation 57 Energy Capacity 485 Matter Stores 300 Matter Capacity 300 Sight Range 20 Robot Scan Range 20 Terrain Scan Range 16 Terrain Scan Density 335 Additional Mass Support 9 Armor Coverage 600 Weapon Cycling 25 Melee Speed Boost 20 Phase Shifting 10 Evasion (%) 75 Targeting Accuracy 6 Melee Accuracy 8 Target Analysis 12 Recoil Reduction 4 Kinecelleration 40 Salvage Targeting 2 Offensive Hacking 34 Defensive Hacking 22 Item Schematics ----------------- Diametric Drive | -2/Research | Scanalyzed Robot Schematics ------------------ None Fabricated ------------ Nothing Repaired ---------- Nothing Alien Tech Used ----------------- None Achievements -------------- 20k Club Deconstruction Release The Drones! Challenges ------------ None Game ------ Seed StorageMiningShielding Manual? 0 Play Time 03:50:58 Cumulative 81.3 hours Start 2025.05.11 @ 19:41:21 End 2025.05.12 @ 01:10:53 Sessions 1 Manual Loads 0 Difficulty Rogue Special Mode None Game No. 76 Rogue 76 Adventurer 0 Explorer 0 Win Type - Total 1 Types 1/0/0/0/0/0/0/0/0/0 Lore% 46 Gallery% 49 Achievement% 44 Wizard Run 0 Options --------- Layout 1 ASCII 0 Keyboard 1 Movement Numpad Keybinds 0 Fullscreen 1 Font 32/SmallcapsGlow Map View 50x35 Zoom Use 0% Tactical HUD 0 Map Filters NONE Filters NONE Steam 1 RUN: dfa0c58e-517b-48d7-812a-07731f1fd60e